lending/lending_fUSD_20251106
["ID","MTS","AMOUNT","RATE_DAILY","PERIOD"]
[393271247,1762413033366,-500.0,0.00015552,2]
[393271248,1762413033378,-500.0,0.00015552,2]
[393271249,1762413033387,-500.0,0.00015552,2]
[393271250,1762413033397,-500.0,0.00015552,2]
[393271251,1762413033406,-500.0,0.00015552,2]
[393271252,1762413033416,-500.0,0.00015552,2]
[393271253,1762413033426,-400.0,0.00015552,2]
[393271254,1762413033435,-500.0,0.00015552,2]
[393271255,1762413033444,-500.0,0.00015552,2]
[393271256,1762413033453,-500.0,0.00015552,2]
[393271257,1762413033462,-500.0,0.00015552,2]
[393271258,1762413033472,-500.0,0.00015552,2]
[393271259,1762413033481,-500.0,0.00015552,2]
[393271260,1762413033490,-500.0,0.00015552,2]
[393271261,1762413033500,-500.0,0.00015552,2]
[393271262,1762413033510,-500.0,0.00015552,2]
[393271263,1762413033519,-500.0,0.00015552,2]
[393271264,1762413033528,-597.80504884,0.00015552,2]
[393271265,1762413033537,-500.0,0.00015552,2]
[393271266,1762413033547,-500.0,0.00015552,2]
[393271267,1762413033556,-500.0,0.00015552,2]
[393271268,1762413033566,-318.64452114,0.00015552,2]
[393271269,1762413033576,-1000.0,0.00015552,2]
[393271270,1762413033585,-950.85,0.00015553,2]
[393271271,1762413033595,-287.004,0.00015559,2]
[393271272,1762413033605,-950.85,0.00015827,2]
[393271273,1762413033614,-929.0539,0.00015914,2]
[393271274,1762413033624,-234.3343,0.00015914,2]
[393271275,1762413033633,-6690.3267,0.00015914,2]
[393271276,1762413033642,-2500.0,0.00015914,2]
[393271277,1762413033652,-10598.12472539,0.00015914,2]
[393271278,1762413033661,-383.63524027,0.00015914,2]
[393271279,1762413033670,-10875.05693388,0.00015914,2]
[393271280,1762413033679,-150.49736311,0.00016004,2]
[393271281,1762413033689,-150.0,0.00016004,2]
[393271282,1762413033698,-500.0,0.00016004,2]
[393271283,1762413033707,-500.0,0.00016004,2]
[393271284,1762413033716,-625.0,0.00016004,2]
[393271285,1762413033725,-150.0,0.00016004,2]
[393271286,1762413033734,-500.0,0.00016004,2]
[393271287,1762413033743,-500.0,0.00016004,2]
[393271288,1762413033753,-150.0,0.00016004,2]
[393271289,1762413033763,-150.0,0.00016004,2]
[393271290,1762413033772,-150.0,0.00016004,2]
[393271291,1762413033781,-500.0,0.00016004,2]
[393271292,1762413033790,-150.0,0.00016004,2]
[393271293,1762413033799,-500.0,0.00016004,2]
[393271294,1762413033808,-500.0,0.00016004,2]
[393271295,1762413033818,-150.0,0.00016004,2]
[393271296,1762413033827,-500.0,0.00016004,2]
[393271297,1762413033836,-150.0,0.00016004,2]
[393271298,1762413033845,-500.0,0.00016004,2]
[393271299,1762413033855,-500.0,0.00016004,2]
[393271300,1762413033865,-151.0,0.00016004,2]
[393271301,1762413033877,-151.0,0.00016004,2]
[393271302,1762413033886,-151.0,0.00016004,2]
[393271303,1762413033895,-151.0,0.00016004,2]
[393271304,1762413033904,-151.0,0.00016004,2]
[393271305,1762413033913,-151.0,0.00016004,2]
[393271306,1762413033922,-151.0,0.00016004,2]
[393271307,1762413033931,-151.0,0.00016004,2]
[393271308,1762413033941,-151.0,0.00016004,2]
[393271309,1762413033950,-151.0,0.00016004,2]
[393271310,1762413033959,-151.0,0.00016004,2]
[393271311,1762413033968,-151.0,0.00016004,2]
[393271312,1762413033978,-151.0,0.00016004,2]
[393271313,1762413033988,-151.0,0.00016004,2]
[393271314,1762413033998,-151.0,0.00016004,2]
[393271315,1762413034009,-151.0,0.00016004,2]
[393271316,1762413034019,-151.0,0.00016004,2]
[393271317,1762413034029,-151.0,0.00016004,2]
[393271318,1762413034039,-151.0,0.00016004,2]
[393271319,1762413034049,-171.18281814,0.00016004,2]
[393271320,1762413034059,-151.0,0.00016004,2]
[393271321,1762413034068,-151.0,0.00016004,2]
[393271322,1762413034078,-151.0,0.00016004,2]
[393271323,1762413034088,-151.0,0.00016004,2]
[393271324,1762413034097,-151.0,0.00016004,2]
[393271325,1762413034108,-151.0,0.00016004,2]
[393271326,1762413034118,-151.0,0.00016004,2]
[393271327,1762413034128,-151.0,0.00016004,2]
[393271328,1762413034137,-151.0,0.00016004,2]
[393271329,1762413034146,-151.0,0.00016011,2]
[393271330,1762413034155,-151.0,0.00016011,2]
[393271331,1762413034164,-500.0,0.00016013,2]
[393271332,1762413034173,-500.0,0.00016013,2]
[393271333,1762413034182,-500.0,0.00016013,2]
[393271334,1762413034192,-500.0,0.00016013,2]
[393271335,1762413034202,-500.0,0.00016013,2]
[393271336,1762413034211,-500.0,0.00016013,2]
[393271337,1762413034221,-224.33769493,0.00016013,2]
[393271338,1762413034230,-500.0,0.00016013,2]
[393271339,1762413034239,-500.0,0.00016013,2]
[393271340,1762413034248,-500.0,0.00016013,2]
[393271341,1762413034257,-500.0,0.00016013,2]
[393271342,1762413034267,-571.33,0.00016013,2]
[393271343,1762413034276,-571.33,0.00016013,2]
[393271344,1762413034285,-500.0,0.00016013,2]
[393271345,1762413034298,-500.0,0.00016013,2]
[393271346,1762413034307,-259.78032375,0.00016013,2]
[393271347,1762413034316,-500.0,0.00016013,2]
[393271348,1762413034325,-500.0,0.00016013,2]
[393271349,1762413034334,-561.62700478,0.00016013,2]
[393271350,1762413034345,-500.0,0.00016013,2]
[393271351,1762413034355,-500.0,0.00016013,2]
[393271352,1762413034366,-500.0,0.00016013,2]
[393271353,1762413034375,-500.0,0.00016013,2]
[393271354,1762413034385,-500.0,0.00016013,2]
[393271355,1762413034394,-500.0,0.00016013,2]
[393271356,1762413034403,-500.0,0.00016013,2]
[393271357,1762413034412,-500.0,0.00016013,2]
[393271358,1762413034421,-500.0,0.00016013,2]
[393271359,1762413034430,-500.0,0.00016013,2]
[393271360,1762413034439,-500.0,0.00016013,2]
[393271361,1762413034448,-500.0,0.00016013,2]
[393271362,1762413034457,-500.0,0.00016013,2]
[393271363,1762413034466,-28634.7487479,0.00016014,2]
[393271364,1762413034656,-50007.73665061,0.00016014,2]
[393271365,1762413034667,-157192.98495994,0.00016014,2]
[393271366,1762413034678,-13747.53908174,0.00016014,2]
[393271367,1762413034693,-4423.2,0.00016014,2]
[393271369,1762413038280,-500.0,0.00015551,2]
[393271370,1762413038290,-292.4251699,0.00015551,2]
[393271371,1762413038303,-182.95639542,0.00015551,2]
[393271372,1762413038313,-252.18378703,0.00015551,2]
[393271373,1762413038323,-615.25822663,0.00015551,2]
[393271374,1762413038333,-8470.47583825,0.00016014,2]
[393271375,1762413038415,-157523.31472156,0.00016014,2]
[393271376,1762413038425,-1000.0,0.00016014,2]
[393271377,1762413038434,-5000.0,0.00016035,2]
[393271378,1762413038443,-173.56770186,0.00016073,2]
[393271379,1762413038453,-160.50194543,0.00016073,2]
[393271380,1762413038462,-503.07369237,0.00016073,2]
[393271381,1762413038472,-500.0,0.00016073,2]
[393271382,1762413038481,-500.0,0.00016073,2]
[393271383,1762413038490,-500.0,0.00016073,2]
[393271384,1762413038501,-500.0,0.00016073,2]
[393271385,1762413038510,-500.0,0.00016073,2]
[393271386,1762413038519,-404.88651497,0.00016073,2]
[393271387,1762413038528,-500.0,0.00016073,2]
[393271388,1762413038537,-500.0,0.00016073,2]
[393271389,1762413038547,-500.0,0.00016073,2]
[393271390,1762413038556,-164.38222559,0.00016073,2]
[393271391,1762413038570,-500.0,0.00016073,2]
[393271392,1762413038591,-164.51884219,0.00016073,2]
[393271393,1762413038608,-313.29928585,0.00016073,2]
[393271394,1762413038618,-500.0,0.00016073,2]
[393271395,1762413038627,-500.0,0.00016073,2]
[393271397,1762413038636,-500.0,0.00016073,2]
[393271398,1762413038646,-500.0,0.00016073,2]
[393271399,1762413038656,-500.0,0.00016073,2]
[393271400,1762413038665,-500.0,0.00016073,2]
[393271401,1762413038674,-500.0,0.00016073,2]
[393271402,1762413038683,-500.0,0.00016073,2]
[393271403,1762413038692,-950.85,0.00016101,2]
[393271404,1762413038702,-500.0,0.00016112,2]
[393271405,1762413038711,-500.0,0.00016112,2]
[393271406,1762413038720,-522.47521665,0.00016112,2]
[393271407,1762413038729,-500.0,0.00016112,2]
[393271408,1762413038738,-502.5,0.00016113,2]
[393271409,1762413038747,-500.0,0.00016113,2]
[393271410,1762413038756,-500.0,0.00016113,2]
[393271411,1762413038766,-500.0,0.00016113,2]
[393271412,1762413038776,-500.0,0.00016113,2]
[393271413,1762413038785,-500.0,0.00016113,2]
[393271414,1762413038794,-1311.24,0.00016116,2]
[393271415,1762413038804,-19778.52,0.00016116,2]
[393271416,1762413038814,-1083.77,0.00016116,2]
[393271417,1762413038824,-2354.23,0.00016116,2]
[393271418,1762413038834,-500.0,0.00016129,2]
[393271419,1762413038844,-500.0,0.00016129,2]
[393271420,1762413038853,-500.0,0.00016129,2]
[393271421,1762413038863,-10598.12472534,0.00016135,2]
[393271422,1762413038872,-383.63524025,0.00016135,2]
[393271423,1762413038882,-10875.05693379,0.00016135,2]
[393271424,1762413038893,-152.08698658,0.00016141,2]
[393271425,1762413038903,-500.0,0.00016141,2]
[393271426,1762413038912,-500.0,0.00016141,2]
[393271427,1762413038923,-625.0,0.00016141,2]
[393271428,1762413038933,-150.0,0.00016141,2]
[393271429,1762413038943,-500.0,0.00016141,2]
[393271430,1762413038952,-500.0,0.00016141,2]
[393271431,1762413038961,-150.0,0.00016141,2]
[393271432,1762413038970,-500.0,0.00016141,2]
[393271433,1762413038983,-513.05879372,0.00016141,2]
[393271434,1762413038992,-500.0,0.00016141,2]
[393271435,1762413039002,-500.0,0.00016141,2]
[393271436,1762413039011,-500.0,0.00016141,2]
[393271437,1762413039021,-500.0,0.00016141,2]
[393271438,1762413039031,-151.0,0.00016197,2]
[393271439,1762413039041,-54447.40970254,0.000162,2]
[393271440,1762413039051,-591.71360911,0.00016213,2]
[393271441,1762413039060,-502.0,0.00016219,2]
[393271442,1762413039069,-500.0,0.00016278,2]
[393271443,1762413039079,-150.0,0.00016278,2]
[393271444,1762413039089,-625.0,0.00016278,2]
[393271445,1762413039098,-150.0,0.00016278,2]
[393271446,1762413039108,-500.0,0.00016278,2]
[393271447,1762413039119,-411.37025384,0.00016278,2]
[393271448,1762413039128,-150.0,0.00016278,2]
[393271449,1762413039138,-500.0,0.00016278,2]
[393271450,1762413039147,-500.0,0.00016278,2]
[393271451,1762413039157,-500.0,0.00016278,2]
[393271452,1762413039167,-500.0,0.00016278,2]
[393271453,1762413039177,-500.0,0.00016278,2]
[393271454,1762413039187,-519.16,0.000163,2]
[393271455,1762413039196,-415.63,0.000163,2]
[393271456,1762413039206,-150.0,0.0001633,2]
[393271457,1762413039215,-150.0,0.0001633,2]
[393271458,1762413039226,-500.0,0.0001633,2]
[393271459,1762413039236,-500.0,0.0001633,2]
[393271460,1762413039245,-500.0,0.0001633,2]
[393271461,1762413039256,-150.0,0.0001633,2]
[393271462,1762413039265,-500.0,0.0001633,2]
[393271463,1762413039274,-500.0,0.0001633,2]
[393271464,1762413039284,-500.0,0.0001633,2]
[393271465,1762413039294,-500.0,0.0001633,2]
[393271466,1762413039306,-408.3599179,0.0001633,2]
[393271467,1762413039315,-500.0,0.0001633,2]
[393271468,1762413039324,-300.0,0.0001633,2]
[393271469,1762413039333,-10598.12472534,0.00016355,2]
[393271470,1762413039346,-383.63524025,0.00016355,2]
[393271471,1762413039355,-10875.05693379,0.00016355,2]
[393271472,1762413039364,-950.85,0.00016375,2]
[393271473,1762413039375,-465.64,0.00016394,2]
[393271474,1762413039384,-500.0,0.00016415,2]
[393271475,1762413039394,-625.0,0.00016415,2]
[393271476,1762413039403,-150.0,0.00016415,2]
[393271477,1762413039415,-500.0,0.00016415,2]
[393271478,1762413039425,-154.15552868,0.00016415,2]
[393271479,1762413039434,-542.08320953,0.00016415,2]
[393271480,1762413039444,-500.0,0.00016415,2]
[393271481,1762413039453,-500.0,0.00016415,2]
[393271482,1762413039462,-500.0,0.00016415,2]
[393271483,1762413039471,-500.0,0.00016415,2]
[393271484,1762413039480,-150.0,0.00016438,2]
[393271485,1762413039489,-500.0,0.00016438,2]
[393271486,1762413039498,-500.0,0.00016438,2]
[393271487,1762413039507,-163.35,0.0001644,2]
[393271488,1762413039516,-150.0,0.00016467,2]
[393271489,1762413039695,-150.0,0.00016467,2]
[393271490,1762413039704,-500.0,0.00016467,2]
[393271491,1762413039713,-500.0,0.00016467,2]
[393271492,1762413039722,-505.03214734,0.00016467,2]
[393271493,1762413039733,-150.0,0.00016467,2]
[393271494,1762413039748,-500.0,0.00016467,2]
[393271495,1762413039757,-300.0,0.00016467,2]
[393271496,1762413039767,-316.47,0.00016504,2]
[393271497,1762413039776,-358.79,0.00016511,2]
[393271498,1762413039785,-420.0,0.00016515,2]
[393271499,1762413039794,-610.0,0.00016516,2]
[393271500,1762413039803,-500.0,0.00016552,2]
[393271501,1762413039812,-625.0,0.00016552,2]
[393271502,1762413039822,-266.33548393,0.00016552,2]
[393271503,1762413039831,-500.0,0.00016552,2]
[393271504,1762413039840,-500.0,0.00016552,2]
[393271505,1762413039849,-156.64145389,0.00016552,2]
[393271506,1762413039859,-500.0,0.00016552,2]
[393271507,1762413039868,-500.0,0.00016552,2]
[393271508,1762413039877,-150.0,0.00016575,2]
[393271509,1762413039886,-10598.12472534,0.00016576,2]
[393271510,1762413039895,-383.63524025,0.00016576,2]
[393271511,1762413039904,-10875.05693379,0.00016576,2]
[393271512,1762413039913,-1680.0,0.00016598,2]
[393271513,1762413039922,-300.0,0.000166,2]
[393271514,1762413039932,-2500.0,0.000166,2]
[393271515,1762413039941,-250.0,0.00016601,2]
[393271516,1762413039950,-300.0,0.00016601,2]
[393271517,1762413039959,-300.0,0.00016601,2]
[393271518,1762413039968,-300.0,0.00016601,2]
[393271519,1762413039977,-300.0,0.00016601,2]
[393271520,1762413039986,-150.0,0.00016604,2]
[393271521,1762413039995,-150.0,0.00016604,2]
[393271522,1762413040004,-500.0,0.00016604,2]
[393271523,1762413040013,-251.64103016,0.00016604,2]
[393271524,1762413040023,-150.0,0.00016604,2]
[393271525,1762413040032,-500.0,0.00016604,2]
[393271526,1762413040041,-300.0,0.00016604,2]
[393271527,1762413040050,-1000.0,0.00016621,2]
[393271528,1762413040059,-406.62378491,0.00016621,2]
[393271529,1762413040068,-719.65200309,0.00016621,2]
[393271530,1762413040077,-1000.0,0.00016621,2]
[393271531,1762413040086,-1000.0,0.00016621,2]
[393271532,1762413040095,-1000.0,0.00016621,2]
[393271533,1762413040104,-284.12598032,0.00016621,2]
[393271534,1762413040113,-174.20785357,0.00016621,2]
[393271535,1762413040122,-1000.0,0.00016621,2]
[393271536,1762413040132,-1000.0,0.00016621,2]
[393271537,1762413040141,-1000.0,0.00016621,2]
[393271538,1762413040152,-782.33179847,0.00016621,2]
[393271539,1762413040162,-1000.0,0.00016621,2]
[393271540,1762413040171,-500.70281537,0.00016621,2]
[393271541,1762413040180,-1000.0,0.00016621,2]
[393271542,1762413040190,-316.47,0.00016641,2]
[393271543,1762413040199,-358.8,0.00016648,2]
[393271544,1762413040208,-950.85,0.00016649,2]
[393271545,1762413040218,-510.0,0.00016671,2]
[393271546,1762413040228,-500.0,0.00016689,2]
[393271547,1762413040237,-625.0,0.00016689,2]
[393271548,1762413040247,-500.0,0.00016689,2]
[393271549,1762413040256,-478.38259742,0.00016689,2]
[393271550,1762413040267,-500.0,0.00016689,2]
[393271551,1762413040276,-500.0,0.00016689,2]
[393271552,1762413040286,-3938.87031304,0.00016699,2]
[393271553,1762413040299,-228.39525195,0.00016741,2]
[393271554,1762413040317,-150.0,0.00016741,2]
[393271555,1762413040327,-500.0,0.00016741,2]
[393271556,1762413040336,-200.84185402,0.00016741,2]
[393271557,1762413040345,-500.0,0.00016741,2]
[393271558,1762413040354,-300.0,0.00016741,2]
[393271559,1762413040363,-316.47,0.00016778,2]
[393271560,1762413040374,-10598.12472534,0.00016797,2]
[393271561,1762413040383,-383.63524025,0.00016797,2]
[393271562,1762413040392,-10875.05693379,0.00016797,2]
[393271563,1762413040402,-500.0,0.00016826,2]
[393271564,1762413040411,-625.0,0.00016826,2]
[393271565,1762413040420,-500.0,0.00016826,2]
[393271566,1762413040429,-500.0,0.00016826,2]
[393271567,1762413040439,-500.0,0.00016826,2]
[393271568,1762413040448,-1000.0,0.00016865,2]
[393271569,1762413040458,-150.0,0.00016878,2]
[393271570,1762413040468,-500.0,0.00016878,2]
[393271571,1762413040477,-300.0,0.00016878,2]
[393271572,1762413040487,-300.0,0.00016878,2]
[393271573,1762413040496,-300.0,0.000169,6]
[393271574,1762413040505,-950.85,0.00016923,2]
[393271575,1762413040514,-500.0,0.00016963,2]
[393271576,1762413040523,-625.0,0.00016963,2]
[393271577,1762413040532,-500.0,0.00016963,2]
[393271578,1762413040541,-500.0,0.00016963,2]
[393271579,1762413040551,-500.0,0.00016963,2]
[393271580,1762413040560,-2326.0,0.00016986,2]
[393271581,1762413040569,-2000.0,0.00017,2]
[393271582,1762413040579,-351.1491444,0.00017001,2]
[393271583,1762413040588,-250.0,0.00017001,2]
[393271584,1762413040597,-195.0,0.00017001,2]
[393271585,1762413040606,-200.54651287,0.00017015,2]
[393271586,1762413040615,-500.0,0.00017015,2]
[393271587,1762413040624,-150.0,0.00017015,2]
[393271588,1762413040634,-500.0,0.00017016,2]
[393271589,1762413040643,-10598.12472534,0.00017017,2]
[393271590,1762413040652,-383.63524025,0.00017017,2]
[393271591,1762413040661,-10875.05693379,0.00017017,2]
[393271592,1762413040670,-574.0,0.00017021,2]
[393271594,1762413040679,-607.0,0.00017021,2]
[393271595,1762413040688,-1315.0,0.00017021,2]
[393271596,1762413040696,-3423.0,0.00017021,2]
[393271597,1762413040705,-1596.0,0.00017021,2]
[393271598,1762413040714,-820.0,0.00017021,2]
[393271599,1762413040722,-812.0,0.00017021,2]
[393271600,1762413040732,-1273.0,0.00017021,2]
[393271601,1762413040741,-559.0,0.00017031,2]
[393271602,1762413040750,-6475.0,0.00017031,2]
[393271603,1762413040760,-2141.0,0.00017031,2]
[393271604,1762413040775,-6658.0,0.00017031,2]
[393271605,1762413040786,-625.0,0.000171,2]
[393271606,1762413040795,-500.0,0.000171,2]
[393271607,1762413040804,-500.0,0.000171,2]
[393271608,1762413040813,-600.0,0.000171,6]
[393271609,1762413040823,-500.0,0.00017152,2]
[393271610,1762413040833,-152.54268606,0.00017152,2]
[393271611,1762413040843,-152.00625849,0.00017152,2]
[393271612,1762413040853,-150.0,0.00017152,2]
[393271613,1762413040862,-202.37031601,0.00017152,2]
[393271614,1762413040873,-150.0,0.00017152,2]
[393271615,1762413040883,-198.50837477,0.00017152,2]
[393271616,1762413040894,-150.0,0.00017152,2]
[393271617,1762413040903,-1500.0,0.00017168,2]
[393271618,1762413040913,-1196.23949712,0.00017168,2]
[393271619,1762413040924,-1500.0,0.00017168,2]
[393271620,1762413040935,-503.46009537,0.00017168,2]
[393271621,1762413040945,-1500.0,0.00017168,2]
[393271622,1762413040954,-277.26642779,0.00017168,2]
[393271623,1762413040967,-1500.0,0.00017168,2]
[393271624,1762413040979,-1500.0,0.00017168,2]
[393271625,1762413040988,-1500.0,0.00017168,2]
[393271626,1762413040998,-1205.44,0.00017178,2]
[393271627,1762413041008,-150.0,0.00017191,2]
[393271628,1762413041018,-150.0,0.00017191,2]
[393271629,1762413041029,-150.0,0.00017191,2]
[393271630,1762413041039,-150.0,0.00017191,2]
[393271631,1762413041050,-150.0,0.00017191,2]
[393271632,1762413041059,-150.0,0.00017191,2]
[393271633,1762413041069,-150.0,0.00017191,2]
[393271634,1762413041079,-150.0,0.00017191,2]
[393271635,1762413041088,-950.85,0.00017197,2]
[393271636,1762413041097,-900.0,0.000172,6]
[393271637,1762413041107,-625.0,0.00017237,2]
[393271638,1762413041116,-500.0,0.00017237,2]
[393271639,1762413041127,-500.0,0.00017237,2]
[393271640,1762413041136,-10598.12472534,0.00017238,2]
[393271641,1762413041146,-383.63524025,0.00017238,2]
[393271642,1762413041155,-10875.05693379,0.00017238,2]
[393271643,1762413041164,-150.0,0.00017289,2]
[393271644,1762413041173,-150.0,0.00017289,2]
[393271645,1762413041182,-150.0,0.00017289,2]
[393271646,1762413041192,-1200.0,0.000173,6]
[393271647,1762413041201,-1169.62774866,0.00017356,7]
[393271648,1762413041211,-625.0,0.00017374,2]
[393271649,1762413041221,-500.0,0.00017374,2]
[393271650,1762413041230,-500.0,0.00017374,2]
[393271651,1762413041242,-1600.0,0.000174,6]
[393271652,1762413041252,-150.0,0.00017426,2]
[393271653,1762413041262,-150.0,0.00017426,2]
[393271654,1762413041272,-155.18319964,0.00017426,2]
[393271655,1762413041281,-10598.12472534,0.00017459,2]
[393271656,1762413041292,-383.63524025,0.00017459,2]
[393271657,1762413041306,-10875.05693379,0.00017459,2]
[393271658,1762413041315,-950.85608539,0.00017471,2]
[393271659,1762413041325,-162.64913491,0.0001749,2]
[393271660,1762413041335,-151.0,0.00017491,2]
[393271661,1762413041346,-3994.643,0.00017494,2]
[393271662,1762413041356,-176.192,0.00017494,2]
[393271663,1762413041365,-300.0,0.000175,6]
[393271664,1762413041374,-477.87911524,0.00017505,2]
[393271665,1762413041384,-625.0,0.00017511,2]
[393271666,1762413041393,-500.0,0.00017511,2]
[393271667,1762413041403,-500.0,0.00017511,2]
[393271668,1762413041412,-614.46048544,0.00017548,2]
[393271669,1762413041421,-221.80400124,0.00017569,2]
[393271670,1762413041430,-300.0,0.000176,6]
[393271671,1762413041439,-380.27666254,0.00017616,2]
[393271672,1762413041449,-288.0,0.00017634,2]
[393271673,1762413041458,-625.0,0.00017648,2]
[393271674,1762413041467,-500.0,0.00017648,2]
[393271675,1762413041476,-500.0,0.00017648,2]
[393271676,1762413041485,-10598.12472534,0.00017679,2]
[393271677,1762413041494,-383.63524025,0.00017679,2]
[393271678,1762413041503,-10875.05693379,0.00017679,2]
[393271679,1762413041513,-300.0,0.000177,6]
[393271680,1762413041522,-893.73840764,0.00017714,2]
[393271681,1762413041531,-2576.0,0.00017716,2]
[393271682,1762413041541,-2000.0,0.00017716,2]
[393271683,1762413041550,-219.00889333,0.00017716,2]
[393271684,1762413041559,-1655.82420147,0.00017716,2]
[393271685,1762413041569,-2000.0,0.00017716,2]
[393271686,1762413041578,-2000.0,0.00017716,2]
[393271687,1762413041588,-1778.08512742,0.00017716,2]
[393271688,1762413041597,-614.46048543,0.00017721,2]
[393271689,1762413041607,-625.0,0.00017785,2]
[393271690,1762413041616,-500.0,0.00017785,2]
[393271691,1762413041625,-317.21658461,0.00017785,2]
[393271692,1762413041634,-288.0,0.00017786,2]
[393271693,1762413041643,-261.32435952,0.00017789,2]
[393271694,1762413041652,-17925.914755,0.000178,2]
[393271695,1762413041661,-151.0,0.000178,2]
[393271696,1762413041670,-169.008804,0.000178,2]
[393271697,1762413041679,-169.008804,0.000178,2]
[393271698,1762413041688,-151.0,0.000178,2]
[393271699,1762413041697,-151.0,0.000178,2]
[393271700,1762413041708,-169.008804,0.000178,2]
[393271701,1762413041718,-169.008804,0.000178,2]
[393271702,1762413041730,-151.0,0.000178,2]
[393271703,1762413041740,-154.254113,0.000178,2]
[393271704,1762413041751,-164.395105,0.000178,2]
[393271705,1762413041760,-151.0,0.000178,2]
[393271706,1762413041769,-161.356972,0.000178,2]
[393271707,1762413041779,-300.0,0.000178,6]
[393271708,1762413041789,-2500.0,0.00017803,3]
[393271709,1762413041799,-500.0,0.00017811,2]
[393271710,1762413041809,-500.0,0.00017811,2]
[393271711,1762413041819,-500.0,0.00017811,2]
[393271712,1762413041829,-571.33,0.00017811,2]
[393271713,1762413041838,-500.0,0.00017811,2]
[393271714,1762413041847,-500.0,0.00017811,2]
[393271715,1762413041856,-500.0,0.00017811,2]
[393271716,1762413041864,-500.0,0.00017811,2]
[393271717,1762413041873,-500.0,0.00017811,2]
[393271718,1762413041882,-2500.0,0.00017812,3]
[393271719,1762413041891,-554.73793,0.0001782,2]
[393271720,1762413041900,-1223.18376974,0.0001782,2]
[393271721,1762413041910,-2500.0,0.00017821,3]
[393271722,1762413041919,-2500.0,0.0001783,3]
[393271723,1762413041928,-213.2608074,0.00017831,2]
[393271724,1762413041937,-2500.0,0.00017838,3]
[393271725,1762413041946,-2500.0,0.00017847,3]
[393271726,1762413041955,-200.0,0.00017855,2]
[393271727,1762413041964,-288.0,0.00017855,2]
[393271728,1762413041973,-2500.0,0.00017856,3]
[393271729,1762413041982,-2500.0,0.00017856,3]
[393271730,1762413041991,-500.0,0.00017856,2]
[393271731,1762413042000,-200.0,0.00017856,2]
[393271732,1762413042009,-150.212892,0.00017858,3]
[393271733,1762413042018,-2500.0,0.00017865,3]
[393271734,1762413042027,-2500.0,0.00017874,3]
[393271735,1762413042036,-288.0,0.00017881,2]
[393271736,1762413042046,-152.538091,0.00017882,3]
[393271737,1762413042055,-150.212892,0.00017882,3]
[393271738,1762413042065,-2500.0,0.00017882,3]
[393271739,1762413042074,-2500.0,0.00017891,3]
[393271740,1762413042083,-922.79268475,0.00017894,2]
[393271741,1762413042091,-614.46048543,0.00017894,2]
[393271742,1762413042100,-300.0,0.00017899,2]
[393271743,1762413042110,-500.0,0.00017899,2]
[393271744,1762413042119,-500.0,0.00017899,2]
[393271745,1762413042128,-161.7418339,0.000179,2]
[393271746,1762413042137,-2744.9989,0.000179,2]
[393271747,1762413042146,-2500.0,0.000179,3]
[393271748,1762413042155,-1931.80172605,0.000179,2]
[393271749,1762413042165,-10598.12472534,0.000179,2]